fUST/lending_fUST_20240713
["ID","MTS","AMOUNT","RATE_DAILY","PERIOD"]
[331940615,1720879839971,-187.00366007,0.00024931,2]
[331940616,1720879839982,-500.0,0.00024931,2]
[331940617,1720879839991,-500.0,0.00024931,2]
[331940618,1720879840004,-500.0,0.00024931,2]
[331940619,1720879840013,-500.0,0.00024931,2]
[331940620,1720879840023,-500.0,0.00024931,2]
[331940621,1720879840032,-500.0,0.00024931,2]
[331940622,1720879840042,-381.1800309,0.00024931,2]
[331940623,1720879840052,-500.0,0.00024931,2]
[331940625,1720879840063,-500.0,0.00024931,2]
[331940627,1720879840073,-8450.10826869,0.00025,60]
[331940628,1720879840082,-189.39290951,0.00025,2]
[331940629,1720879840093,-150.112233,0.00025,5]
[331940630,1720879840103,-500.0,0.00025203,2]
[331940631,1720879840112,-30000.0,0.00025204,2]
[331940632,1720879840123,-151.0,0.00025205,2]
[331940633,1720879840134,-507.26,0.00025205,2]
[331940634,1720879840143,-316.63180992,0.00025205,2]
[331940635,1720879840152,-500.0,0.00025205,2]
[331940636,1720879840162,-500.0,0.00025205,2]
[331940637,1720879840172,-500.0,0.00025205,2]
[331940638,1720879840181,-2590.72,0.00025205,2]
[331940639,1720879840191,-767.51,0.00025205,2]
[331940640,1720879840200,-500.0,0.00025205,2]
[331940641,1720879840209,-500.0,0.00025205,2]
[331940643,1720879840219,-339.71798854,0.00025205,2]
[331940644,1720879840229,-173.13312301,0.00025205,2]
[331940646,1720879840238,-500.0,0.00025205,2]
[331940647,1720879840248,-500.0,0.00025205,2]
[331940648,1720879840257,-878.33419801,0.000254,3]
[331940649,1720879840267,-4328.26610921,0.00025469,3]
[331940650,1720879840276,-500.0,0.00025479,2]
[331940651,1720879840285,-500.0,0.00025479,2]
[331940652,1720879840294,-2590.72,0.00025479,2]
[331940653,1720879840304,-767.51,0.00025479,2]
[331940654,1720879840314,-500.0,0.00025479,2]
[331940655,1720879840324,-500.0,0.00025479,2]
[331940656,1720879840333,-8656.53221842,0.0002549,3]
[331940657,1720879840342,-500.0,0.00025499,2]
[331940658,1720879840351,-500.0,0.00025499,2]
[331940659,1720879840361,-500.0,0.00025499,2]
[331940660,1720879840381,-117600.14279937,0.000255,2]
[331940661,1720879840390,-151.0,0.000255,2]
[331940662,1720879840400,-350.0,0.000255,7]
[331940663,1720879840413,-350.0,0.000255,7]
[331940664,1720879840423,-3033.5701088,0.00025658,2]
[331940665,1720879840432,-500.0,0.00025753,2]
[331940666,1720879840442,-507.98739794,0.00025753,2]
[331940667,1720879840452,-2590.72,0.00025753,2]
[331940668,1720879840463,-767.51,0.00025753,2]
[331940669,1720879840476,-248.79,0.00025753,2]
[331940670,1720879840486,-500.0,0.00025753,2]
[331940671,1720879840496,-285.68,0.00026,120]
[331940672,1720879840506,-4328.26610921,0.00026017,3]
[331940673,1720879840515,-500.0,0.00026026,2]
[331940674,1720879840525,-500.0,0.00026027,2]
[331940675,1720879840652,-2590.72,0.00026027,2]
[331940676,1720879840676,-767.51,0.00026027,2]
[331940677,1720879840686,-500.0,0.00026027,2]
[331940678,1720879840696,-152.78171719,0.0002613,2]
[331940679,1720879840706,-180.0,0.00026222,2]
[331940680,1720879840716,-500.0,0.00026301,2]
[331940681,1720879840726,-2590.72,0.00026301,2]
[331940682,1720879840736,-767.51,0.00026301,2]
[331940683,1720879840746,-500.0,0.00026301,2]
[331940684,1720879840756,-7458.94652043,0.0002649,2]
[331940685,1720879840765,-150.112233,0.000265,5]
[331940686,1720879840775,-3000.0,0.000265,2]
[331940687,1720879840785,-3033.5701088,0.000265,2]
[331940688,1720879840794,-3000.0,0.0002651,2]
[331940689,1720879840803,-3000.0,0.0002652,2]
[331940690,1720879840814,-151.0,0.0002653,2]
[331940691,1720879840824,-350.0,0.0002653,7]
[331940692,1720879840834,-350.0,0.0002653,7]
[331940693,1720879840843,-3000.0,0.0002653,2]
[331940694,1720879840852,-3000.0,0.0002654,2]
[331940695,1720879840862,-3000.0,0.0002655,2]
[331940696,1720879840871,-433.74,0.00026559,2]
[331940697,1720879840881,-3000.0,0.0002656,2]
[331940698,1720879840891,-3000.0,0.0002657,2]
[331940699,1720879840901,-500.0,0.00026575,2]
[331940700,1720879840911,-2590.72,0.00026575,2]
[331940701,1720879840921,-767.51,0.00026575,2]
[331940702,1720879840934,-500.0,0.00026575,2]
[331940703,1720879840944,-3000.0,0.0002658,2]
[331940704,1720879840955,-3000.0,0.0002659,2]
[331940706,1720879840966,-4328.26610921,0.0002659,3]
[331940708,1720879840977,-3000.0,0.000266,2]
[331940709,1720879840987,-3000.0,0.0002661,2]
[331940711,1720879840996,-3000.0,0.0002662,2]
[331940712,1720879841008,-3000.0,0.0002663,2]
[331940713,1720879841018,-3000.0,0.0002664,2]
[331940714,1720879841028,-151.0,0.0002665,2]
[331940715,1720879841037,-350.0,0.0002665,7]
[331940716,1720879841047,-350.0,0.0002665,7]
[331940717,1720879841056,-3000.0,0.0002665,2]
[331940718,1720879841065,-3680.880186,0.0002666,2]
[331940719,1720879841074,-150.27,0.00026849,2]
[331940720,1720879841084,-2590.72,0.00026849,2]
[331940721,1720879841095,-767.51,0.00026849,2]
[331940722,1720879841104,-500.0,0.00026849,2]
[331940723,1720879841114,-152.78171719,0.00026968,2]
[331940724,1720879841123,-165.00896352,0.00027016,2]
[331940725,1720879841133,-165.00896352,0.00027047,2]
[331940726,1720879841143,-152.78171719,0.00027123,2]
[331940727,1720879841153,-2590.72,0.00027123,2]
[331940728,1720879841162,-767.51,0.00027123,2]
[331940729,1720879841172,-563.58,0.00027123,2]
[331940730,1720879841183,-541.403958,0.00027195,2]
[331940731,1720879841192,-152.78171719,0.00027218,2]
[331940732,1720879841202,-2590.72,0.00027397,2]
[331940733,1720879841211,-767.51,0.00027397,2]
[331940734,1720879841221,-500.0,0.00027397,2]
[331940735,1720879841232,-241.74936296,0.00027397,2]
[331940736,1720879841241,-171.4420555,0.00027397,120]
[331940737,1720879841251,-175.48417072,0.000274,2]
[331940738,1720879841260,-165.00896352,0.00027442,2]
[331940739,1720879841271,-153.79107762,0.00027445,2]
[331940740,1720879841281,-4328.26610921,0.0002749,3]
[331940741,1720879841291,-3279.08935335,0.000275,5]
[331940742,1720879841300,-43690.95914845,0.000275,2]
[331940743,1720879841310,-350.0,0.000275,7]
[331940744,1720879841320,-350.0,0.000275,7]
[331940745,1720879841330,-152.78171719,0.00027657,2]
[331940746,1720879841340,-2590.72,0.00027671,2]
[331940747,1720879841349,-767.51,0.00027671,2]
[331940748,1720879841358,-165.00896352,0.0002772,2]
[331940749,1720879841368,-2590.72,0.00027945,2]
[331940750,1720879841377,-767.51,0.00027945,2]
[331940751,1720879841387,-4328.26610921,0.0002798,3]
[331940752,1720879841397,-152.78171719,0.00027986,2]
[331940753,1720879841407,-23248.72827913,0.0002799,2]
[331940754,1720879841416,-526.33889339,0.00028,2]
[331940755,1720879841426,-268.76209587,0.00028,2]
[331940756,1720879841436,-150.112233,0.00028,6]
[331940757,1720879841446,-350.0,0.00028013,7]
[331940758,1720879841456,-350.0,0.00028013,7]
[331940759,1720879841466,-152.78171719,0.00028087,2]
[331940760,1720879841476,-2590.72,0.00028219,2]
[331940761,1720879841486,-767.51,0.00028219,2]
[331940762,1720879841495,-150.42453829,0.00028296,2]
[331940763,1720879841505,-152.78171719,0.00028318,2]
[331940764,1720879841515,-2590.72,0.00028493,2]
[331940765,1720879841524,-767.51,0.00028493,2]
[331940766,1720879841534,-8656.53221842,0.0002876,3]
[331940767,1720879841546,-348.45032102,0.00028766,2]
[331940768,1720879841557,-2590.72,0.00028767,2]
[331940769,1720879841566,-767.51,0.00028767,2]
[331940770,1720879841575,-21633.84675038,0.0002877,2]
[331940771,1720879841642,-1518.34020742,0.0002877,2]
[331940832,1720879846363,-305.47,0.00023881,3]
[331940833,1720879846493,-508.50106147,0.00023881,3]
[331940834,1720879846503,-500.0,0.00024657,2]
[331940835,1720879846513,-333.7894152,0.00024657,2]
[331940836,1720879846522,-147.9695154,0.00024657,2]
[331940843,1720880046817,9615.23092531,0.00016255,2]
[331940849,1720880116569,16257.37313367,0.00016255,2]
[331940850,1720880122968,2391.82993865,0.00016255,2]
[331940851,1720880125561,287.63681577,0.00016255,2]
[331940852,1720880127122,154.60575532,0.00016255,2]
[331940853,1720880130188,3773.14321747,0.00016255,2]
[331940854,1720880130403,436.49865584,0.00016255,2]
[331940855,1720880135097,496.52836023,0.00016255,2]
[331940856,1720880135250,6502.93890957,0.00016255,2]
[331940859,1720880140394,284.26271461,0.00016255,2]
[331940861,1720880163146,1266.38237034,0.00016255,2]
[331940862,1720880171347,1491.05500079,0.00016255,2]
[331940863,1720880193064,1635.9635479,0.00016255,2]
[331940864,1720880214947,1106.379575,0.00016255,2]
[331940865,1720880215079,15849.37281896,0.00016255,2]
[331940866,1720880221137,155.90975837,0.00016255,2]
[331940867,1720880221577,287.20578347,0.00016255,2]
[331940868,1720880231354,496.52836023,0.00016255,2]
[331940869,1720880236335,610.635225,0.00016255,2]
[331940874,1720880261042,17263.58906267,0.00016255,2]
[331940878,1720880302059,492.52724663,0.00016255,2]
[331940880,1720880333854,155.05668743,0.00016255,2]
[331940881,1720880351364,496.52836023,0.00016255,2]
[331940882,1720880367834,893.19437824,0.00016255,2]
[331940883,1720880373711,34965.18068565,0.00016255,2]
[331940884,1720880394956,878.73202262,0.00016255,2]
[331940886,1720880406061,17263.58906267,0.00016255,2]
[331940887,1720880412788,155.51415868,0.00016255,2]
[331940894,1720880451375,188.33712649,0.00016255,2]
[331940895,1720880461714,11043.39905491,0.00016255,2]
[331940896,1720880482928,156.63186637,0.00016255,2]
[331940898,1720880501719,34965.18068565,0.00016255,2]
[331940903,1720880511313,42272.81939151,0.00016255,2]
[331940905,1720880524855,9765.975951,0.00016255,2]
[331940906,1720880526327,42272.81939151,0.00016255,2]
[331940909,1720880530319,15014.55151976,0.00017398,2]
[331940912,1720880543800,3776.426534,0.00016255,2]
[331940914,1720880546687,9479.6946624,0.00017392,2]
[331940919,1720880568588,57276.54193482,0.00016254,2]
[331940921,1720880573682,154.83742071,0.00017398,2]
[331940924,1720880590839,155.62808659,0.00016255,2]
[331940925,1720880601825,157.15944748,0.00016255,2]
[331940926,1720880603064,17251.12315437,0.00016255,2]
[331940927,1720880604595,656.24869051,0.00016255,2]
[331940928,1720880611722,10168.44275403,0.00016255,2]
[331940929,1720880612714,354.46681452,0.00016255,2]
[331940930,1720880615327,3138.06906429,0.00016255,2]
[331940931,1720880618969,1636.98995052,0.00016255,2]
[331940932,1720880623864,712.61039236,0.00016255,2]
[331940933,1720880625068,491.60345067,0.00016255,2]
[331940934,1720880625299,10462.78997647,0.00016255,2]
[331940935,1720880635208,202.13946757,0.00016255,2]
[331940936,1720880636728,182.82989065,0.00016255,2]
[331940937,1720880645900,156.56418552,0.00016255,2]
[331940938,1720880646748,34965.18068565,0.00016255,2]
[331940939,1720880651588,57276.54193482,0.00016255,2]
[331940940,1720880659003,361.38765619,0.00016255,7]
[331940941,1720880665964,271.9244408,0.00016255,2]
[331940942,1720880668823,524.30218587,0.00016255,2]
[331940943,1720880670880,181.96225967,0.00016255,2]
[331940944,1720880671307,189.08196029,0.00016255,2]
[331940945,1720880672320,165.25732412,0.00016255,2]
[331940946,1720880672982,227.68775465,0.00016255,2]
[331940948,1720880677973,1063.12812108,0.00016255,2]
[331940949,1720880679742,159.59139767,0.00016255,2]
[331940950,1720880681931,413.03103633,0.00016255,2]
[331940951,1720880682320,162.82680235,0.00016255,2]
[331940953,1720880686265,157.06062467,0.00016255,2]
[331940955,1720880688511,2135.60833403,0.00016255,2]
[331940956,1720880698835,9626.228118,0.00016255,2]
[331940958,1720880700421,34651.66271958,0.00016255,2]
[331940960,1720880702416,205.74271144,0.00016255,2]
[331940961,1720880708055,287.01556155,0.00016255,2]
[331940962,1720880709016,154.60575532,0.00016255,2]
[331940974,1720880800980,1636.48372042,0.00016255,2]
[331940979,1720880817088,491.60345067,0.00016255,2]
[331940980,1720880822605,159.65124257,0.00016255,2]
[331940982,1720880830593,6933.13579919,0.00016255,2]
[331940983,1720880833543,183.71919178,0.00016255,2]
[331940986,1720880837226,6987.56477081,0.00016255,2]
[331940987,1720880838277,525.73842429,0.00016255,2]
[331940989,1720880845334,5261.89789762,0.00016255,2]
[331940990,1720880846292,9455.59378525,0.00016255,2]
[331940991,1720880850623,935.88747239,0.00016255,2]
[331940992,1720880851679,24900.0,0.00017277,2]
[331940993,1720880852343,9626.228118,0.00016255,2]
[331940996,1720880872997,1230.27459568,0.00016255,2]
[331940997,1720880873248,34965.18068565,0.00016255,2]
[331941000,1720880882845,415.17920703,0.00016255,2]
[331941002,1720880891008,2135.60833403,0.00016255,2]
[331941004,1720880915102,2134.82531921,0.00016255,2]
[331941009,1720880931542,-250.0,0.00017474,2]
[331941013,1720880931594,-738.9882841,0.00017498,2]
[331941018,1720880931652,-988.9882841,0.00017498,2]
[331941023,1720880939342,2240.25035362,0.00016255,2]
[331941025,1720880949134,-1272.0234318,0.00017498,2]
[331941026,1720880949156,-462.2249939,0.00017611,2]
[331941027,1720880949178,-385.7278886,0.00017616,2]
[331941028,1720880949199,-162.157861,0.00017687,2]
[331941029,1720880949222,-162.157861,0.00017745,2]
[331941030,1720880949246,-345.2669,0.00017762,2]
[331941031,1720880949268,-162.157861,0.00017803,2]
[331941032,1720880949289,-162.157861,0.0001786,2]
[331941033,1720880949309,-162.157861,0.00017918,2]
[331941034,1720880949330,-162.157861,0.00017976,2]
[331941035,1720880949351,-300.0,0.00017999,2]
[331941036,1720880949374,-300.0,0.00017999,2]
[331941037,1720880949398,-14470.10760751,0.00018,2]
[331941038,1720880949418,-205.1077818,0.00018,2]
[331941039,1720880949440,-162.157861,0.00018033,2]
[331941040,1720880949467,-162.157861,0.00018091,2]
[331941041,1720880949488,-162.157861,0.00018148,2]
[331941042,1720880949511,-162.157861,0.00018206,2]
[331941043,1720880949533,-162.157861,0.00018264,2]
[331941044,1720880949554,-162.157861,0.00018321,2]
[331941045,1720880949577,-162.157861,0.00018379,2]
[331941046,1720880949597,-162.157861,0.00018437,2]
[331941047,1720880949620,-162.157861,0.00018494,2]
[331941048,1720880949641,-162.157861,0.00018552,2]
[331941049,1720880949662,-162.157861,0.00018609,2]
[331941052,1720880956455,-1028.54781546,0.0001882,2]
[331941054,1720880956559,-545.05489997,0.0001882,2]
[331941057,1720880971127,-246.53934985,0.0001882,2]
[331941058,1720880971147,-1041.66200346,0.00018889,2]
[331941059,1720880971168,-213.57205259,0.00018898,2]
[331941060,1720880971190,-3669.34855341,0.00018899,2]
[331941061,1720880971211,-2227.99803707,0.00018899,2]
[331941062,1720880971233,-1498.7214182,0.000189,2]
[331941063,1720880971254,-197.44371632,0.00019039,2]
[331941064,1720880971275,-250.0,0.00019041,2]
[331941065,1720880971296,-164.59,0.00019154,3]
[331941066,1720880971316,-1074.28099577,0.00019164,2]
[331941067,1720880971337,-1987.39135655,0.00019164,2]
[331941068,1720880971358,-455.47292518,0.00019165,2]
[331941069,1720880971379,-518.1114155,0.00019165,2]
[331941070,1720880971399,-162.508196,0.00019178,2]
[331941071,1720880971420,-445.36311186,0.00019603,2]
[331941072,1720880971442,-420.0,0.00019639,2]
[331941073,1720880971468,-493.82,0.00019692,3]
[331941074,1720880971488,-935.81729399,0.00019703,2]
[331941075,1720880971509,-2132.70025452,0.00019703,2]
[331941076,1720880971530,-1184.8145375,0.00019703,2]
[331941077,1720880971551,-919.22728,0.00019703,2]
[331941078,1720880971571,-304.27929387,0.00019703,2]
[331941079,1720880971590,-154.62119658,0.00019703,2]
[331941080,1720880971610,-420.0,0.00019799,2]
[331941081,1720880971630,-6207.28576747,0.0002,2]
[331941082,1720880971650,-158.69421259,0.0002,2]
[331941083,1720880971670,-155.34433816,0.0002,2]
[331941084,1720880971690,-435.0,0.0002,2]
[331941085,1720880971710,-155.86895917,0.0002,2]
[331941086,1720880971730,-151.18583801,0.0002,2]
[331941087,1720880971750,-166.2105848,0.0002,2]
[331941088,1720880971771,-1551.64131705,0.0002,2]
[331941089,1720880971790,-1982.79169513,0.0002,2]
[331941094,1720881003122,259.0,0.00017401,2]
[331941135,1720881032433,-632.68231449,0.000199,2]
[331941137,1720881032445,-823.43133775,0.000199,2]
[331941139,1720881032454,-329.18,0.0001999,3]
[331941141,1720881032464,-300.0,0.00019999,2]
[331941143,1720881032479,-300.0,0.00019999,2]
[331941145,1720881032488,-529.4700064,0.0002,2]
[331941148,1720881032501,-2008.21794043,0.0002,2]
[331941452,1720881038562,-186.84481885,0.00019999,2]
[331941453,1720881038571,-500.0,0.00019999,2]
[331941454,1720881038581,-500.0,0.00019999,2]
[331941455,1720881038590,-192.20103692,0.00019999,2]
[331941456,1720881038599,-500.0,0.00019999,2]
[331941457,1720881038607,-500.0,0.00019999,2]
[331941458,1720881038617,-500.0,0.00019999,2]
[331941459,1720881038627,-294.40332855,0.00019999,2]
[331941460,1720881038636,-88612.30169866,0.0002,2]
[331941461,1720881038647,-280.86267126,0.0002,2]
[331941462,1720881038658,-13992.83606081,0.0002,2]
[331941463,1720881038668,-764.43027422,0.0002,2]
[331941464,1720881038677,-6871.28306613,0.0002,2]
[331941465,1720881038686,-225.9011813,0.0002,2]
[331941466,1720881038695,-4234.98124607,0.0002066,7]
[331941467,1720881038705,-155.45465387,0.00021095,2]
[331941468,1720881038715,-572.152254,0.00021096,2]
[331941469,1720881038724,-219.050405,0.00021096,2]
[331941470,1720881038733,-1456.11365222,0.0002125,2]
[331941471,1720881038742,-299.0,0.00021777,2]
[331941472,1720881038752,-166.666666,0.00021918,2]
[331941473,1720881038762,-420.0,0.00021999,2]
[331941474,1720881038772,-10013.22226026,0.00022,7]
[331941475,1720881038782,-813.97106147,0.0002243,3]
[331941476,1720881038791,-166.666666,0.00022431,2]
[331941477,1720881038800,-1456.11365222,0.000226,2]
[331941478,1720881038809,-191.13729909,0.00022841,2]
[331941479,1720881038818,-987.41667127,0.00022942,2]
[331941480,1720881038827,-166.666666,0.00022944,2]
[331941481,1720881038836,-580.42758695,0.00023355,2]
[331941482,1720881038846,-156.21395383,0.00023453,2]
[331941483,1720881038856,-166.666666,0.00023456,2]
[331941484,1720881038866,-445.3631118,0.00023728,2]
[331941485,1720881038875,-1498.7214182,0.000239,2]
[331941486,1720881038885,-1456.11365222,0.0002395,2]
[331941487,1720881038895,-166.666666,0.00023969,2]
[331941488,1720881038905,-150.112233,0.00024,2]
[331941489,1720881038915,-587.0,0.00024199,2]
[331941490,1720881038924,-197.44371632,0.00024242,2]
[331941491,1720881038934,-1361.19830126,0.00024455,2]
[331941492,1720881038946,-276.84511174,0.00024481,2]
[331941493,1720881038958,-166.666666,0.00024482,2]
[331941494,1720881038967,-2000.0,0.00024557,2]
[331941495,1720881038976,-150.112233,0.000246,4]
[331941496,1720881038987,-15056.4394684,0.00024647,3]
[331941497,1720881038997,-500.35695851,0.00024657,2]
[331941498,1720881039007,-1000.0,0.00024657,2]
[331941499,1720881039016,-428.62808121,0.00024657,2]
[331941500,1720881039025,-500.0,0.00024657,2]
[331941501,1720881039034,-388.07627838,0.00024657,2]
[331941502,1720881039044,-500.0,0.00024657,2]
[331941503,1720881039054,-500.0,0.00024657,2]
[331941504,1720881039063,-503.47404513,0.00024657,2]
[331941505,1720881039072,-500.0,0.00024657,2]
[331941506,1720881039081,-500.0,0.00024657,2]
[331941507,1720881039090,-500.0,0.00024657,2]
[331941508,1720881039099,-526.03680587,0.00024657,2]
[331941509,1720881039108,-500.0,0.00024657,2]
[331941510,1720881039118,-502.5302188,0.00024657,2]
[331941511,1720881039127,-500.0,0.00024657,2]
[331941512,1720881039137,-501.5952988,0.00024657,2]
[331941513,1720881039146,-500.0,0.00024657,2]
[331941514,1720881039155,-500.0,0.00024657,2]
[331941515,1720881039164,-500.0,0.00024657,2]
[331941516,1720881039173,-500.0,0.00024657,2]
[331941517,1720881039182,-500.0,0.00024657,2]
[331941518,1720881039192,-500.0,0.00024657,2]
[331941519,1720881039201,-500.0,0.00024657,2]
[331941520,1720881039210,-500.0,0.00024657,2]
[331941521,1720881039219,-500.0,0.00024657,2]
[331941522,1720881039228,-500.0,0.00024657,2]
[331941523,1720881039237,-500.0,0.00024657,2]
[331941524,1720881039246,-502.32846549,0.00024657,2]
[331941525,1720881039256,-503.06028341,0.00024657,2]
[331941526,1720881039265,-502.77136037,0.00024657,2]
[331941527,1720881039274,-500.0,0.00024657,2]
[331941528,1720881039283,-500.0,0.00024657,2]
[331941529,1720881039292,-500.0,0.00024657,2]
[331941530,1720881039302,-559.60509344,0.00024657,2]
[331941531,1720881039311,-500.0,0.00024657,2]
[331941532,1720881039320,-500.0,0.00024657,2]
[331941533,1720881039329,-500.0,0.00024657,2]
[331941534,1720881039339,-200.0,0.00024657,2]
[331941535,1720881039348,-500.0,0.00024657,2]
[331941536,1720881039358,-500.0,0.00024657,2]
[331941537,1720881039367,-500.0,0.00024657,2]
[331941538,1720881039378,-500.0,0.00024657,2]
[331941539,1720881039387,-500.0,0.00024657,2]
[331941540,1720881039396,-281.36419801,0.00024657,2]
[331941541,1720881039406,-500.0,0.00024657,2]
[331941542,1720881039415,-500.0,0.00024657,2]
[331941543,1720881039425,-579.71585286,0.00024657,2]
[331941544,1720881039434,-183.38071513,0.00024657,2]
[331941545,1720881039444,-151.0,0.00024657,7]
[331941546,1720881039453,-151.833814,0.00024657,7]
[331941547,1720881039463,-500.0,0.00024657,2]
[331941548,1720881039472,-500.0,0.00024657,2]
[331941549,1720881039484,-394.59678082,0.00024657,2]
[331941550,1720881039493,-500.0,0.00024657,2]
[331941551,1720881039503,-500.0,0.00024657,2]
[331941552,1720881039514,-500.0,0.00024657,2]
[331941553,1720881039524,-500.0,0.00024657,2]
[331941554,1720881039533,-500.0,0.00024657,2]
[331941555,1720881039543,-500.0,0.00024657,2]
[331941556,1720881039554,-500.0,0.00024657,2]
[331941557,1720881039563,-500.0,0.00024657,2]
[331941558,1720881039573,-500.0,0.00024657,2]
[331941559,1720881039581,-500.0,0.00024657,2]
[331941560,1720881039591,-500.0,0.00024657,2]
[331941561,1720881039600,-318.34102764,0.00024657,2]
[331941562,1720881039609,-500.0,0.00024657,2]
[331941563,1720881039618,-500.0,0.00024657,2]
[331941564,1720881039627,-246.0041287,0.00024657,2]
[331941565,1720881039637,-500.0,0.00024657,2]
[331941566,1720881039646,-500.0,0.00024657,2]
[331941567,1720881039655,-500.0,0.00024657,2]
[331941568,1720881039664,-504.86558127,0.00024657,2]
[331941569,1720881039673,-500.0,0.00024657,2]
[331941570,1720881039682,-500.0,0.00024657,2]
[331941571,1720881039691,-500.0,0.00024657,2]
[331941572,1720881039702,-500.0,0.00024657,2]
[331941573,1720881039711,-500.0,0.00024657,2]
[331941574,1720881039720,-500.0,0.00024657,2]
[331941575,1720881039729,-500.0,0.00024657,2]
[331941576,1720881039739,-500.0,0.00024657,2]
[331941577,1720881039749,-500.0,0.00024657,2]
[331941578,1720881039759,-500.0,0.00024657,2]
[331941579,1720881039768,-500.0,0.00024657,2]
[331941580,1720881039778,-500.0,0.00024657,2]
[331941581,1720881039787,-505.19751283,0.00024657,2]
[331941582,1720881039797,-500.0,0.00024657,2]
[331941583,1720881039807,-500.0,0.00024657,2]
[331941584,1720881039819,-643.75,0.00024657,2]
[331941585,1720881039829,-500.0,0.00024657,2]
[331941586,1720881039838,-500.0,0.00024657,2]
[331941587,1720881039847,-500.0,0.00024657,2]
[331941588,1720881039857,-500.0,0.00024657,2]
[331941589,1720881039866,-500.0,0.00024657,2]
[331941590,1720881039876,-500.0,0.00024657,2]
[331941591,1720881039885,-500.0,0.00024657,2]
[331941592,1720881039895,-500.0,0.00024657,2]
[331941593,1720881039904,-500.0,0.00024657,2]
[331941594,1720881039913,-500.0,0.00024657,2]
[331941595,1720881039923,-500.0,0.00024657,2]
[331941596,1720881039932,-500.0,0.00024657,2]
[331941597,1720881039941,-350.49959546,0.00024657,2]
[331941598,1720881039950,-500.0,0.00024657,2]
[331941599,1720881039959,-500.0,0.00024657,2]
[331941600,1720881039969,-503.18513919,0.00024657,2]
[331941601,1720881039980,-500.0,0.00024657,2]
[331941602,1720881039990,-500.0,0.00024657,2]
[331941603,1720881039999,-500.0,0.00024657,2]
[331941604,1720881040009,-500.0,0.00024657,2]
[331941605,1720881040018,-500.0,0.00024657,2]
[331941606,1720881040027,-524.71451294,0.00024657,2]
[331941607,1720881040037,-500.0,0.00024657,2]
[331941608,1720881040048,-500.0,0.00024657,2]
[331941609,1720881040057,-500.0,0.00024657,2]
[331941610,1720881040066,-500.0,0.00024657,2]
[331941611,1720881040075,-500.0,0.00024657,2]
[331941612,1720881040085,-500.0,0.00024657,2]
[331941613,1720881040095,-500.0,0.00024657,2]
[331941614,1720881040104,-500.0,0.00024657,2]
[331941615,1720881040114,-500.0,0.00024657,2]
[331941616,1720881040123,-500.0,0.00024657,2]
[331941617,1720881040133,-500.0,0.00024657,2]
[331941619,1720881040142,-624.01604066,0.00024657,2]
[331941621,1720881040152,-500.0,0.00024657,2]
[331941622,1720881040162,-500.0,0.00024657,2]
[331941623,1720881040171,-242.6987117,0.00024657,2]
[331941625,1720881040180,-500.0,0.00024657,2]
[331941626,1720881040191,-500.0,0.00024657,2]
[331941627,1720881040200,-500.0,0.00024657,2]
[331941628,1720881040210,-500.0,0.00024657,2]
[331941629,1720881040219,-500.0,0.00024657,2]
[331941630,1720881040228,-500.0,0.00024657,2]
[331941631,1720881040238,-507.62153835,0.00024657,2]
[331941632,1720881040247,-502.48372103,0.00024657,2]
[331941633,1720881040257,-300.0,0.00024657,2]
[331941634,1720881040266,-500.0,0.00024657,2]
[331941635,1720881040277,-500.0,0.00024657,2]
[331941636,1720881040287,-500.0,0.00024657,2]